fUSD/lending_fUSD_20250416
["ID","MTS","AMOUNT","RATE_DAILY","PERIOD"]
[358209151,1744847229159,-441.932602,0.0005,120]
[358209152,1744847229183,-441.932602,0.0005,120]
[358209153,1744847229208,-441.932602,0.0005,120]
[358209154,1744847229233,-369.91801,0.0005,120]
[358209155,1744847229258,-369.91801,0.0005,120]
[358209156,1744847229282,-151.0,0.0005,120]
[358209157,1744847229307,-151.0,0.0005,120]
[358209158,1744847229331,-369.91801,0.0005,120]
[358209159,1744847229356,-369.91801,0.0005,120]
[358209160,1744847229381,-151.0,0.0005,120]
[358209161,1744847229406,-151.0,0.0005,120]
[358209162,1744847229431,-151.0,0.0005,120]
[358209163,1744847229456,-151.0,0.0005,120]
[358209164,1744847229481,-151.0,0.0005,90]
[358209165,1744847229507,-151.0,0.0005,90]
[358209166,1744847229533,-181.814353,0.0005,120]
[358209167,1744847229559,-181.814353,0.0005,120]
[358209168,1744847229585,-151.0,0.0005,120]
[358209169,1744847229611,-151.0,0.0005,120]
[358209170,1744847229638,-181.814353,0.0005,120]
[358209171,1744847229666,-181.814353,0.0005,120]
[358209172,1744847229692,-333.89705798,0.00050282,39]
[358209173,1744847229718,-520.55054396,0.00050584,60]
[358209174,1744847229743,-160.54,0.00050795,30]
[358209175,1744847229769,-160.54,0.00050795,30]
[358209176,1744847229795,-160.54,0.00050795,30]
[358209177,1744847229821,-160.54,0.00050795,30]
[358209178,1744847229845,-160.54,0.00050795,30]
[358209179,1744847229870,-160.54,0.00050795,30]
[358209180,1744847229894,-160.54,0.00050795,30]
[358209181,1744847229917,-151.0,0.000509,120]
[358209182,1744847229941,-151.0,0.000509,120]
[358209183,1744847229965,-465.150314,0.000509,120]
[358209184,1744847229993,-465.150314,0.000509,120]
[358209185,1744847230159,-151.0,0.00050973,120]
[358209186,1744847230184,-151.0,0.00050973,120]
[358209187,1744847230209,-151.0,0.00050973,120]
[358209188,1744847230239,-1000000.0,0.00051,120]
[358209189,1744847230263,-151.0,0.00051,120]
[358209190,1744847230287,-151.0,0.00051,120]
[358209191,1744847230312,-151.0,0.00051,120]
[358209192,1744847230337,-151.0,0.00051,120]
[358209193,1744847230362,-151.0,0.00051,120]
[358209194,1744847230387,-151.0,0.00051,120]
[358209195,1744847230411,-151.0,0.00051,120]
[358209196,1744847230436,-151.0,0.00051,120]
[358209197,1744847230461,-151.0,0.00051,120]
[358209198,1744847230485,-151.0,0.00051,120]
[358209199,1744847230509,-151.0,0.00051,120]
[358209200,1744847230533,-151.0,0.00051,120]
[358209201,1744847230558,-172.250037,0.00051,120]
[358209202,1744847230582,-151.0,0.00051,120]
[358209203,1744847230606,-151.0,0.00051,120]
[358209204,1744847230630,-151.0,0.00051,120]
[358209205,1744847230654,-151.0,0.00051,120]
[358209206,1744847230679,-151.0,0.00051,120]
[358209207,1744847230703,-151.0,0.00051,120]
[358209208,1744847230728,-151.0,0.00051,120]
[358209209,1744847230753,-180.57935,0.00051,120]
[358209210,1744847230777,-151.0,0.00051,120]
[358209211,1744847230802,-151.0,0.00051,120]
[358209212,1744847230827,-151.0,0.00051,120]
[358209213,1744847230852,-288.050758,0.00051,120]
[358209214,1744847230876,-151.0,0.00051,120]
[358209215,1744847230902,-288.050758,0.00051,120]
[358209216,1744847230926,-151.0,0.00051,120]
[358209217,1744847230950,-151.0,0.00051,120]
[358209218,1744847230974,-151.0,0.00051,120]
[358209219,1744847231004,-670.550843,0.00051,120]
[358209220,1744847231031,-670.550843,0.00051,120]
[358209221,1744847231057,-151.0,0.00051,120]
[358209222,1744847231083,-151.0,0.00051,120]
[358209223,1744847231109,-151.0,0.00051,120]
[358209224,1744847231134,-273.142483,0.00051,120]
[358209225,1744847231159,-273.142483,0.00051,120]
[358209226,1744847231185,-151.0,0.00051,120]
[358209227,1744847231210,-151.0,0.00051,120]
[358209228,1744847231236,-151.0,0.00051,120]
[358209229,1744847231261,-151.0,0.00051,120]
[358209230,1744847231287,-182.408442,0.00051,120]
[358209231,1744847231311,-182.408442,0.00051,120]
[358209232,1744847231335,-151.0,0.00051,120]
[358209233,1744847231361,-348.909026,0.00051,120]
[358209234,1744847231387,-1032.235051,0.00051,120]
[358209235,1744847231412,-1032.235051,0.00051,120]
[358209236,1744847231438,-151.0,0.00051,120]
[358209237,1744847231463,-156.86,0.00051,120]
[358209238,1744847231488,-156.86,0.00051,120]
[358209239,1744847231513,-151.0,0.00051,120]
[358209240,1744847231538,-151.66668,0.00051,120]
[358209241,1744847231564,-535.949663,0.00051,120]
[358209242,1744847231589,-151.0,0.00051,120]
[358209243,1744847231614,-151.0,0.00051,120]
[358209244,1744847231639,-246.965501,0.00051,120]
[358209245,1744847231665,-246.965501,0.00051,120]
[358209246,1744847231691,-200.156539,0.00051,120]
[358209247,1744847231716,-200.156539,0.00051,120]
[358209248,1744847231739,-151.0,0.00051,120]
[358209249,1744847231764,-151.0,0.00051,120]
[358209250,1744847231789,-465.150314,0.00051,120]
[358209251,1744847231814,-465.150314,0.00051,120]
[358209252,1744847231839,-1425.216544,0.00051,120]
[358209253,1744847231866,-151.0,0.00051,120]
[358209254,1744847231898,-1425.216544,0.00051,120]
[358209255,1744847231923,-151.0,0.00051,120]
[358209256,1744847231949,-683.192257,0.00051,120]
[358209257,1744847231981,-683.192257,0.00051,120]
[358209258,1744847232008,-4118.106289,0.00051,120]
[358209259,1744847232035,-151.0,0.00051,120]
[358209260,1744847232062,-4118.106289,0.00051,120]
[358209261,1744847232088,-151.0,0.00051,120]
[358209262,1744847232112,-151.0,0.00051,120]
[358209263,1744847232137,-151.0,0.00051,120]
[358209264,1744847232163,-151.0,0.00051,120]
[358209265,1744847232188,-575.85731,0.00051,120]
[358209266,1744847232214,-575.85731,0.00051,120]
[358209267,1744847232241,-151.0,0.00051,120]
[358209268,1744847232266,-151.0,0.00051,120]
[358209269,1744847232291,-441.932602,0.00051,120]
[358209270,1744847232315,-441.932602,0.00051,120]
[358209271,1744847232341,-369.91801,0.00051,120]
[358209272,1744847232367,-151.0,0.00051,120]
[358209273,1744847232392,-369.91801,0.00051,120]
[358209274,1744847232416,-151.0,0.00051,120]
[358209275,1744847232441,-151.0,0.00051,120]
[358209276,1744847232466,-164.153029,0.00051,90]
[358209277,1744847232491,-181.814353,0.00051,120]
[358209278,1744847232517,-151.0,0.00051,120]
[358209279,1744847232543,-181.814353,0.00051,120]
[358209280,1744847232568,-428.34182164,0.00051007,120]
[358209281,1744847232594,-333.89705798,0.00051165,43]
[358209282,1744847232620,-151.15,0.00051342,30]
[358209283,1744847232646,-150.0,0.00051342,30]
[358209284,1744847232672,-150.0,0.00051342,30]
[358209285,1744847232698,-155.700458,0.00051929,120]
[358209286,1744847232725,-151.0,0.00051929,120]
[358209287,1744847232750,-151.0,0.00051929,120]
[358209288,1744847232914,-273.142483,0.00051929,120]
[358209289,1744847232941,-273.142483,0.00051929,120]
[358209290,1744847232966,-151.0,0.00051929,120]
[358209291,1744847232996,-199.582184,0.00051929,120]
[358209292,1744847233021,-151.0,0.00051929,120]
[358209293,1744847233046,-182.408442,0.00051929,120]
[358209294,1744847233074,-182.408442,0.00051929,120]
[358209295,1744847233099,-151.0,0.00051929,120]
[358209296,1744847233124,-348.909026,0.00051929,120]
[358209297,1744847233149,-151.0,0.00051929,120]
[358209298,1744847233174,-1032.235051,0.00051929,120]
[358209299,1744847233198,-1032.235051,0.00051929,120]
[358209300,1744847233223,-151.0,0.00051929,120]
[358209301,1744847233247,-156.86,0.00051929,120]
[358209302,1744847233271,-156.86,0.00051929,120]
[358209303,1744847233296,-151.0,0.00051964,120]
[358209304,1744847233322,-535.949663,0.00051964,120]
[358209305,1744847233347,-151.0,0.00051964,120]
[358209306,1744847233372,-151.0,0.00051964,120]
[358209307,1744847233397,-246.965501,0.00051964,120]
[358209308,1744847233422,-246.965501,0.00051964,120]
[358209309,1744847233448,-200.156539,0.00051964,120]
[358209310,1744847233473,-200.156539,0.00051964,120]
[358209311,1744847233497,-151.0,0.00051964,120]
[358209312,1744847233523,-151.0,0.00051964,120]
[358209313,1744847233548,-465.150314,0.00051964,120]
[358209314,1744847233573,-465.150314,0.00051964,120]
[358209315,1744847233598,-1425.216544,0.00051964,120]
[358209316,1744847233623,-151.0,0.00051964,120]
[358209317,1744847233649,-1425.216544,0.00051964,120]
[358209318,1744847233674,-151.0,0.00051964,120]
[358209319,1744847233701,-683.192257,0.00051964,120]
[358209320,1744847233727,-683.192257,0.00051964,120]
[358209321,1744847233754,-4118.106289,0.00051964,120]
[358209322,1744847233779,-151.0,0.00051964,120]
[358209323,1744847233805,-4118.106289,0.00051964,120]
[358209324,1744847233830,-151.0,0.00051964,120]
[358209325,1744847233855,-151.0,0.00051964,120]
[358209326,1744847233881,-151.0,0.00051964,120]
[358209327,1744847233905,-262.44023,0.00051964,120]
[358209328,1744847233930,-575.85731,0.00051964,120]
[358209329,1744847233955,-575.85731,0.00051964,120]
[358209330,1744847233983,-151.0,0.00051964,120]
[358209331,1744847234009,-151.0,0.00051964,120]
[358209332,1744847234036,-441.932602,0.00051964,120]
[358209333,1744847234063,-441.932602,0.00051964,120]
[358209334,1744847234100,-369.91801,0.00051964,120]
[358209335,1744847234125,-151.0,0.00051964,120]
[358209336,1744847234152,-369.91801,0.00051964,120]
[358209337,1744847234177,-151.0,0.00051964,120]
[358209338,1744847234202,-151.0,0.00051964,120]
[358209339,1744847234227,-181.814353,0.00051964,120]
[358209340,1744847234252,-151.0,0.00051964,120]
[358209341,1744847234276,-181.814353,0.00051964,120]
[358209342,1744847234306,-1000000.0,0.00052,120]
[358209343,1744847234330,-151.0,0.00052,120]
[358209344,1744847234354,-157.216586,0.00052,120]
[358209345,1744847234379,-155.459609,0.00052,120]
[358209346,1744847234403,-151.0,0.00052,120]
[358209347,1744847234427,-151.0,0.00052,120]
[358209348,1744847234451,-233.955561,0.00052,120]
[358209349,1744847234475,-151.0,0.00052,120]
[358209350,1744847234499,-151.0,0.00052,120]
[358209351,1744847234524,-151.0,0.00052,120]
[358209352,1744847234550,-151.0,0.00052,120]
[358209353,1744847234573,-151.0,0.00052,120]
[358209354,1744847234598,-151.0,0.00052,120]
[358209355,1744847234622,-151.0,0.00052,120]
[358209356,1744847234646,-151.0,0.00052,120]
[358209357,1744847234670,-151.0,0.00052,120]
[358209358,1744847234695,-153.697389,0.00052,120]
[358209359,1744847234720,-152.779917,0.00052,120]
[358209360,1744847234745,-151.0,0.00052,120]
[358209361,1744847234771,-151.0,0.00052,120]
[358209362,1744847234795,-211.692279,0.00052,120]
[358209363,1744847234819,-151.0,0.00052,120]
[358209364,1744847234843,-151.0,0.00052,120]
[358209365,1744847234868,-151.0,0.00052,120]
[358209366,1744847234892,-151.0,0.00052,120]
[358209367,1744847234925,-151.0,0.00052,120]
[358209368,1744847234949,-151.0,0.00052,120]
[358209369,1744847234973,-151.0,0.00052,120]
[358209370,1744847235003,-151.0,0.00052,120]
[358209371,1744847235027,-151.0,0.00052,120]
[358209372,1744847235051,-151.0,0.00052,120]
[358209373,1744847235080,-151.0,0.00052,120]
[358209374,1744847235105,-151.0,0.00052,120]
[358209375,1744847235130,-288.050758,0.00052,120]
[358209376,1744847235155,-288.050758,0.00052,120]
[358209377,1744847235180,-151.0,0.00052,120]
[358209378,1744847235204,-151.0,0.00052,120]
[358209379,1744847235228,-288.050758,0.00052,120]
[358209380,1744847235254,-288.050758,0.00052,120]
[358209381,1744847235279,-233.826331,0.00052,120]
[358209382,1744847235303,-151.0,0.00052,120]
[358209383,1744847235329,-151.0,0.00052,120]
[358209384,1744847235353,-151.0,0.00052,120]
[358209385,1744847235377,-151.0,0.00052,120]
[358209386,1744847235402,-670.550843,0.00052,120]
[358209387,1744847235545,-670.550843,0.00052,120]
[358209388,1744847235580,-670.550843,0.00052,120]
[358209389,1744847235607,-670.550843,0.00052,120]
[358209390,1744847235633,-151.0,0.00052,120]
[358209391,1744847235658,-151.0,0.00052,120]
[358209392,1744847235684,-151.0,0.00052,120]
[358209393,1744847235709,-151.0,0.00052,120]
[358209394,1744847235736,-273.142483,0.00052,120]
[358209395,1744847235763,-273.142483,0.00052,120]
[358209396,1744847235788,-273.142483,0.00052,120]
[358209397,1744847235813,-273.142483,0.00052,120]
[358209398,1744847235838,-151.0,0.00052,120]
[358209399,1744847235862,-151.0,0.00052,120]
[358209400,1744847235887,-151.0,0.00052,120]
[358209401,1744847235912,-151.0,0.00052,120]
[358209402,1744847235937,-182.408442,0.00052,120]
[358209403,1744847235962,-182.408442,0.00052,120]
[358209404,1744847235987,-182.408442,0.00052,120]
[358209405,1744847236013,-182.408442,0.00052,120]
[358209406,1744847236039,-151.0,0.00052,120]
[358209407,1744847236065,-151.0,0.00052,120]
[358209408,1744847236090,-272.625503,0.00052,120]
[358209409,1744847236116,-348.909026,0.00052,120]
[358209410,1744847236160,-348.909026,0.00052,120]
[358209411,1744847236205,-1032.235051,0.00052,120]
[358209412,1744847236247,-1032.235051,0.00052,120]
[358209413,1744847236291,-1032.235051,0.00052,120]
[358209414,1744847236334,-1032.235051,0.00052,120]
[358209415,1744847236378,-151.0,0.00052,120]
[358209416,1744847236418,-151.0,0.00052,120]
[358209417,1744847236460,-156.86,0.00052,120]
[358209418,1744847236501,-156.86,0.00052,120]
[358209419,1744847236543,-156.86,0.00052,120]
[358209420,1744847236588,-156.86,0.00052,120]
[358209421,1744847236632,-151.0,0.00052,120]
[358209422,1744847236677,-535.949663,0.00052,120]
[358209423,1744847236723,-535.949663,0.00052,120]
[358209424,1744847236769,-535.949663,0.00052,120]
[358209425,1744847236815,-535.949663,0.00052,120]
[358209426,1744847236859,-151.0,0.00052,120]
[358209427,1744847236904,-151.0,0.00052,120]
[358209428,1744847236949,-151.0,0.00052,120]
[358209429,1744847236994,-151.0,0.00052,120]
[358209430,1744847237037,-246.965501,0.00052,120]
[358209431,1744847237082,-246.965501,0.00052,120]
[358209432,1744847237127,-246.965501,0.00052,120]
[358209433,1744847237171,-246.965501,0.00052,120]
[358209434,1744847237216,-200.156539,0.00052,120]
[358209435,1744847237263,-200.156539,0.00052,120]
[358209436,1744847237310,-200.156539,0.00052,120]
[358209437,1744847237358,-200.156539,0.00052,120]
[358209438,1744847237403,-151.0,0.00052,120]
[358209439,1744847237450,-242.010191,0.00052,120]
[358209440,1744847237497,-465.150314,0.00052,120]
[358209441,1744847237547,-465.150314,0.00052,120]
[358209442,1744847237595,-465.150314,0.00052,120]
[358209443,1744847237640,-465.150316,0.00052,120]
[358209444,1744847237688,-1425.216544,0.00052,120]
[358209445,1744847237734,-1425.216544,0.00052,120]
[358209446,1744847237780,-151.0,0.00052,120]
[358209447,1744847237825,-151.0,0.00052,120]
[358209448,1744847237869,-1425.216544,0.00052,120]
[358209449,1744847237912,-1425.216544,0.00052,120]
[358209450,1744847237957,-151.0,0.00052,120]
[358209451,1744847237999,-151.0,0.00052,120]
[358209452,1744847238043,-683.192257,0.00052,120]
[358209453,1744847238086,-683.192257,0.00052,120]
[358209454,1744847238129,-683.192257,0.00052,120]
[358209455,1744847238172,-683.192257,0.00052,120]
[358209456,1744847238218,-4118.106289,0.00052,120]
[358209457,1744847238264,-4118.106289,0.00052,120]
[358209458,1744847238308,-151.0,0.00052,120]
[358209459,1744847238354,-151.0,0.00052,120]
[358209460,1744847238401,-4118.106289,0.00052,120]
[358209461,1744847238448,-158.871035,0.00052,120]
[358209462,1744847238494,-4118.106289,0.00052,120]
[358209463,1744847238538,-179.000303,0.00052,120]
[358209464,1744847238582,-151.0,0.00052,120]
[358209465,1744847238628,-151.0,0.00052,120]
[358209466,1744847238675,-575.85731,0.00052,120]
[358209467,1744847238722,-575.85731,0.00052,120]
[358209468,1744847238770,-575.85731,0.00052,120]
[358209469,1744847238814,-575.85731,0.00052,120]
[358209470,1744847238859,-151.0,0.00052,120]
[358209471,1744847238903,-151.0,0.00052,120]
[358209472,1744847238948,-151.0,0.00052,120]
[358209473,1744847238992,-151.0,0.00052,120]
[358209474,1744847239036,-441.932602,0.00052,120]
[358209475,1744847239080,-441.932602,0.00052,120]
[358209476,1744847239124,-441.932602,0.00052,120]
[358209477,1744847239169,-441.932602,0.00052,120]
[358209478,1744847239210,-369.91801,0.00052,120]
[358209479,1744847239255,-369.91801,0.00052,120]
[358209480,1744847239299,-151.0,0.00052,120]
[358209481,1744847239342,-369.91801,0.00052,120]
[358209482,1744847239388,-151.0,0.00052,120]
[358209483,1744847239435,-369.91801,0.00052,120]
[358209484,1744847239671,-151.0,0.00052,120]
[358209485,1744847239724,-151.0,0.00052,120]
[358209486,1744847239774,-181.814353,0.00052,120]
[358209487,1744847239822,-181.814353,0.00052,120]
[358209488,1744847239869,-181.814353,0.00052,120]
[358209489,1744847239912,-181.814353,0.00052,120]
[358209490,1744847239955,-333.89705798,0.00052047,47]
[358209491,1744847239999,-1000.0,0.00052909,120]
[358209492,1744847240041,-333.89705798,0.00052929,50]
[358209493,1744847240089,-362423.42187561,0.00053,120]
[358209494,1744847246988,-152.787269,0.0004949,120]
[358209495,1744847247034,-151.0,0.0004949,120]
[358209496,1744847247081,-244.236318,0.0004949,120]
[358209497,1744847247125,-151.0,0.0004949,120]
[358209498,1744847247170,-151.0,0.000495,120]
[358209499,1744847247213,-244.236318,0.000495,120]
[358209500,1744847247260,-151.0,0.00049979,120]
[358209501,1744847247307,-244.236318,0.00049979,120]
[358209502,1744847247351,-200.0,0.0004998,120]
[358209503,1744847247398,-207.4,0.0004998,120]
[358209504,1744847247444,-215.0738,0.0004998,120]
[358209505,1744847247493,-223.0315306,0.0004998,120]
[358209506,1744847247541,-231.28369723,0.0004998,120]
[358209507,1744847247590,-239.84119403,0.0004998,120]
[358209508,1744847247640,-248.71531821,0.0004998,120]
[358209509,1744847247691,-257.91778498,0.0004998,120]
[358209510,1744847247743,-267.46074303,0.0004998,120]
[358209511,1744847247795,-277.35679052,0.0004998,120]
[358209512,1744847247844,-287.61899177,0.0004998,120]
[358209513,1744847247894,-298.26089446,0.0004998,120]
[358209514,1744847247941,-309.29654756,0.0004998,120]
[358209515,1744847247992,-320.74051982,0.0004998,120]
[358209516,1744847248039,-332.60791905,0.0004998,120]
[358209517,1744847248086,-488.90843,0.0004998,120]
[358209518,1744847248133,-151.0,0.0005,120]
[358209519,1744847248181,-151.0,0.0005,120]
[358209520,1744847248227,-244.236318,0.0005,120]
[358209521,1744847248278,-244.236318,0.0005,120]
[358209522,1744847248326,-151.0,0.00051,120]
[358209523,1744847248376,-244.236318,0.00051,120]
[358209524,1744847248423,-1017.99464945,0.0005194,30]
[358209525,1744847248472,-151.0,0.00051964,120]
[358209526,1744847248520,-244.236318,0.00051964,120]
[358209527,1744847248574,-637576.57812439,0.00053,120]
[358209528,1744847248621,-151.0,0.00053,120]
[358209529,1744847248669,-151.0,0.00053,120]
[358209530,1744847248715,-151.0,0.00053,120]
[358209531,1744847248763,-151.0,0.00053,120]
[358209532,1744847248810,-151.0,0.00053,120]
[358209533,1744847248857,-151.0,0.00053,120]
[358209534,1744847248902,-151.0,0.00053,120]
[358209535,1744847248948,-151.0,0.00053,120]
[358209536,1744847248995,-279.490805,0.00053,120]
[358209537,1744847249049,-151.0,0.00053,120]
[358209538,1744847249095,-151.0,0.00053,120]
[358209539,1744847249140,-151.0,0.00053,120]
[358209540,1744847249184,-151.0,0.00053,120]
[358209541,1744847249229,-151.0,0.00053,120]
[358209542,1744847249275,-288.050758,0.00053,120]
[358209543,1744847249323,-151.0,0.00053,120]
[358209544,1744847249371,-288.050758,0.00053,120]
[358209545,1744847249563,-151.0,0.00053,120]
[358209546,1744847249611,-151.0,0.00053,120]
[358209547,1744847249659,-670.550843,0.00053,120]
[358209548,1744847249706,-670.550843,0.00053,120]
[358209549,1744847249752,-152.737082,0.00053,120]
[358209550,1744847249795,-151.0,0.00053,120]
[358209551,1744847249838,-273.142483,0.00053,120]
[358209552,1744847249879,-89087.1349945,0.00053,30]
[358209553,1744847249920,-273.142478,0.00053,120]
[358209554,1744847249962,-151.0,0.00053,120]
[358209555,1744847250005,-151.0,0.00053,120]
[358209556,1744847250048,-182.408442,0.00053,120]
[358209557,1744847250091,-182.408442,0.00053,120]
[358209558,1744847250135,-1032.235051,0.00053,120]
[358209559,1744847250180,-1032.235059,0.00053,120]
[358209560,1744847250224,-151.0,0.00053,120]
[358209561,1744847250270,-156.86,0.00053,120]
[358209562,1744847250315,-156.86,0.00053,120]
[358209563,1744847250358,-535.949656,0.00053,120]
[358209564,1744847250401,-151.0,0.00053,120]
[358209565,1744847250444,-151.0,0.00053,120]
[358209566,1744847250487,-246.965501,0.00053,120]
[358209567,1744847250531,-246.965496,0.00053,120]
[358209568,1744847250574,-200.156539,0.00053,120]
[358209569,1744847250618,-200.156546,0.00053,120]
[358209570,1744847250662,-1425.216544,0.00053,120]
[358209571,1744847250707,-151.0,0.00053,120]
[358209572,1744847250753,-1425.216542,0.00053,120]
[358209573,1744847250798,-280.199012,0.00053,120]
[358209574,1744847250841,-683.192257,0.00053,120]
[358209575,1744847250884,-683.192257,0.00053,120]
[358209576,1744847250927,-4118.106289,0.00053,120]
[358209577,1744847250969,-244.816822,0.00053,120]
[358209578,1744847251012,-4118.106289,0.00053,120]
[358209579,1744847251054,-151.0,0.00053,120]
[358209580,1744847251100,-575.85731,0.00053,120]
[358209581,1744847251142,-575.85731,0.00053,120]
[358209582,1744847251186,-151.0,0.00053,120]
[358209583,1744847251230,-290.407625,0.00053,120]
[358209584,1744847251276,-441.932602,0.00053,120]
[358209585,1744847251318,-441.932602,0.00053,120]
[358209586,1744847251363,-369.91801,0.00053,120]
[358209587,1744847251407,-369.91801,0.00053,120]
[358209588,1744847251451,-151.0,0.00053,120]
[358209589,1744847251495,-161.07205,0.00053,120]
[358209590,1744847251542,-159.541663,0.00053,120]
[358209591,1744847251587,-181.814353,0.00053,120]
[358209592,1744847251636,-181.814353,0.00053,120]
[358209593,1744847251684,-150.0,0.0005326,30]
[358209594,1744847251730,-150.0,0.0005326,30]
[358209595,1744847251778,-150.0,0.0005326,30]
[358209596,1744847251823,-150.0,0.0005326,30]
[358209597,1744847251870,-150.0,0.0005326,30]
[358209598,1744847251914,-683.192257,0.000534,120]
[358209599,1744847251960,-683.192253,0.000534,120]
[358209600,1744847252003,-4118.106289,0.000534,120]
[358209601,1744847252046,-4118.106282,0.000534,120]
[358209602,1744847252092,-575.85731,0.000534,120]
[358209603,1744847252141,-575.857303,0.000534,120]
[358209604,1744847252188,-151.0,0.000534,120]
[358209605,1744847252234,-441.932602,0.000534,120]
[358209606,1744847252281,-441.932604,0.000534,120]
[358209607,1744847252326,-369.91801,0.000534,120]
[358209608,1744847252372,-369.918014,0.000534,120]
[358209609,1744847252417,-151.0,0.000534,120]
[358209610,1744847252466,-181.814353,0.000534,120]
[358209611,1744847252511,-181.814361,0.000534,120]
[358209612,1744847252556,-166.379223,0.0005376,120]
[358209613,1744847252605,-333.89705798,0.00053812,54]
[358209614,1744847252656,-257.0,0.00053832,30]
[358209615,1744847252704,-246.67143,0.00053963,120]
[358209616,1744847252754,-182.408442,0.00053963,120]
[358209617,1744847252804,-182.408442,0.00053963,120]
[358209618,1744847252852,-151.0,0.00053963,120]
[358209619,1744847252899,-2529.12408904,0.00054,120]
[358209620,1744847252945,-3180.0,0.00054,120]
[358209621,1744847252993,-10000.0,0.00054,120]
[358209622,1744847253045,-1000000.0,0.00054,120]
[358209623,1744847253097,-1000000.0,0.00054,120]
[358209624,1744847253144,-151.0,0.00054,120]
[358209625,1744847253191,-157.403398,0.00054,120]
[358209626,1744847253242,-151.0,0.00054,120]
[358209627,1744847253291,-151.0,0.00054,120]
[358209628,1744847253337,-151.0,0.00054,120]
[358209629,1744847253383,-151.0,0.00054,120]
[358209630,1744847253427,-151.0,0.00054,120]
[358209631,1744847253474,-151.0,0.00054,120]
[358209632,1744847253520,-192.241395,0.00054,120]
[358209633,1744847253565,-151.0,0.00054,120]
[358209634,1744847253745,-152.441787,0.00054,120]
[358209635,1744847253792,-151.0,0.00054,120]
[358209636,1744847253837,-151.0,0.00054,120]
[358209637,1744847253881,-194.207493,0.00054,120]
[358209638,1744847253926,-151.0,0.00054,120]
[358209639,1744847253969,-262.906162,0.00054,120]
[358209640,1744847254013,-151.0,0.00054,120]
[358209641,1744847254057,-151.0,0.00054,120]
[358209642,1744847254106,-151.0,0.00054,120]
[358209643,1744847254151,-151.0,0.00054,120]
[358209644,1744847254197,-151.0,0.00054,120]
[358209645,1744847254241,-151.0,0.00054,120]
[358209646,1744847254287,-151.0,0.00054,120]
[358209647,1744847254334,-151.0,0.00054,120]
[358209648,1744847254378,-288.050758,0.00054,120]
[358209649,1744847254422,-288.050758,0.00054,120]
[358209650,1744847254468,-151.0,0.00054,120]